bitfinex/quotes_ETHUSD_20250724
["timestamp","ask_amount","ask_price","bid_price","bid_amount"]
[1753383584093,4.149,3745.3,3745.0,3.72092268]
[1753383585015,0.55,3745.2,3745.0,0.1336]
[1753383585298,0.55,3745.0,3744.8,0.001]
[1753383585511,4.699,3744.9,3744.8,0.001]
[1753383585662,4.8326,3744.9,3744.8,0.001]
[1753383585861,0.1336,3744.9,3744.8,0.001]
[1753383586065,0.1336,3744.9,3744.8,0.9279]
[1753383586066,4.149,3744.9,3744.8,0.9279]
[1753383586298,4.149,3744.9,3744.8,3.59826957]
[1753383586625,4.149,3744.9,3744.8,0.9279]
[1753383586799,4.149,3744.9,3744.8,1.0615]
[1753383587302,4.149,3744.9,3744.8,3.73186957]
[1753383587601,0.6836,3745.3,3745.0,2.67017864]
[1753383587895,4.149,3745.2,3744.9,3.59719827]
[1753383588202,4.149,3745.2,3745.0,0.9269]
[1753383588364,0.6836,3745.3,3745.0,0.9269]
[1753383588365,0.55,3745.7,3745.0,0.9269]
[1753383588695,7.2826,3745.6,3745.1,2.80373822]
[1753383588996,7.2826,3745.6,3745.1,3.73063822]
[1753383589198,7.7535,3745.6,3745.1,0.1336]
[1753383589495,0.1336,3745.6,3745.2,0.9269]
[1753383589665,0.1336,3746.2,3745.3,1.77330013]
[1753383589861,0.1336,3746.2,3745.5,0.1336]
[1753383590094,0.002,3746.3,3746.0,2.66946051]
[1753383590510,3.002,3746.3,3746.0,0.9269]
[1753383591003,3.002,3746.3,3745.8,2.80325079]
[1753383591004,0.002,3746.3,3745.8,2.80325079]
[1753383591421,3.002,3746.3,3745.8,3.73015079]
[1753383591969,3.002,3746.3,3745.9,2.6695568]
[1753383592172,0.55,3746.2,3745.8,0.1336]
[1753383592398,0.55,3746.0,3745.6,2.80339124]
[1753383592811,0.55,3746.0,3745.7,2.6697113]
[1753383593111,0.55,3746.0,3745.7,3.1428113]
[1753383593309,0.55,3746.0,3745.7,3.5966113]
[1753383593805,0.55,3746.0,3745.7,0.9269]
[1753383594126,0.55,3745.8,3745.1,6.81910632]
[1753383594312,3.6836,3745.8,3745.1,2.80370495]
[1753383594496,3.6836,3745.8,3745.0,2.80382225]
[1753383594497,0.55,3745.5,3745.0,2.80382225]
[1753383594699,0.55,3745.5,3745.1,2.67015265]
[1753383595009,3.55,3745.5,3745.1,2.67013626]
[1753383596008,3.55,3745.5,3745.0,1.0605]
[1753383596211,3.55,3745.5,3745.0,3.73071435]
[1753383596816,3.55,3745.5,3745.1,2.67014799]
[1753383597487,3.54850638,3745.5,3745.1,2.67014799]
[1753383598308,3.54850638,3745.5,3745.0,3.73071894]
[1753383598519,3.54850638,3745.5,3745.1,2.67014794]
[1753383599236,3.54850638,3745.5,3745.0,3.27692652]
[1753383599529,3.54850638,3745.5,3745.1,2.67014268]
[1753383600031,3.54850638,3745.5,3745.0,1.0605]
[1753383600528,4.01940638,3745.5,3745.0,2.80381542]
[1753383600734,0.9319,3745.4,3744.8,0.001]
[1753383601033,0.9319,3745.4,3744.3,1e-08]
[1753383601034,4.04835484,3744.4,3744.3,1e-08]
[1753383601242,17.79105654,3744.4,3744.3,1e-08]
[1753383601453,8.6899157,3744.4,3744.3,1e-08]
[1753383601997,5.00826086,3744.4,3744.3,1e-08]
[1753383602209,12.8379157,3744.4,3744.3,1e-08]
[1753383603903,13.23743837,3744.4,3744.3,1e-08]
[1753383604411,13.08761737,3744.4,3744.3,1e-08]
[1753383604737,12.40501737,3744.4,3744.3,1e-08]
[1753383605033,28.17386945,3744.4,3744.3,1e-08]
[1753383605210,27.45501737,3744.4,3744.3,1e-08]
[1753383605534,12.95701737,3744.4,3744.3,1e-08]
[1753383606433,8.80601737,3744.4,3744.3,1e-08]
[1753383606642,11.83495651,3744.4,3744.3,1e-08]
[1753383606835,7.67995651,3744.4,3744.3,1e-08]
[1753383607003,11.58625484,3744.4,3744.3,1e-08]
[1753383607404,12.13625484,3744.4,3744.3,1e-08]
[1753383607603,7.98025484,3744.4,3744.3,1e-08]
[1753383607835,7.51925484,3744.4,3744.3,1e-08]
[1753383608035,5.5327,3744.4,3744.3,1e-08]
[1753383608237,8.20335484,3744.4,3744.3,1e-08]
[1753383608536,11.67425484,3744.4,3744.3,1e-08]
[1753383608702,11.20335484,3744.4,3744.3,1e-08]
[1753383608903,4.9817,3744.4,3744.3,1e-08]
[1753383609108,4.9817,3744.4,3744.3,0.45380001]
[1753383609437,7.704,3744.4,3744.3,0.45380001]
[1753383609739,6.948,3744.5,3744.3,0.45380001]
[1753383609740,6.948,3744.5,3744.3,0.92690001]
[1753383609938,4.154,3744.4,3744.3,0.92690001]
[1753383610233,4.156,3744.4,3744.3,3.03060784]
[1753383610940,3.0,3744.4,3744.3,1e-08]
[1753383611141,3.55,3744.4,3744.3,1e-08]
[1753383611440,7.164,3744.4,3744.3,0.92690001]
[1753383611801,3.0,3744.4,3744.3,0.92690001]
[1753383612008,7.164,3744.4,3744.3,0.92690001]
[1753383612208,7.164,3744.4,3744.3,1e-08]
[1753383612533,7.164,3744.4,3744.3,0.92690001]
[1753383612730,0.55,3744.9,3744.3,0.92690001]
[1753383612937,4.162,3744.8,3744.6,2.67049829]
[1753383613137,0.002,3745.1,3744.5,2.67057302]
[1753383613138,4.162,3744.7,3744.5,2.67057302]
[1753383613348,4.162,3744.7,3744.3,2.84581198]
[1753383613349,3.0,3744.5,3744.3,2.84583657]
[1753383613552,3.0,3744.4,3744.3,2.84583657]
[1753383613748,7.162,3744.4,3744.3,3.31893657]
[1753383613950,7.162,3744.4,3744.3,3.77273657]
[1753383614556,0.002,3745.1,3744.3,1.10202001]
[1753383614863,4.16,3745.0,3744.5,0.8248]
[1753383615153,0.002,3745.1,3745.0,2.67022696]
[1753383615455,3.0,3745.0,3744.9,0.1336]
[1753383615752,3.0,3745.0,3744.9,1.0517]
[1753383615913,3.0,3745.0,3744.9,3.72199827]
[1753383617249,0.002,3745.1,3745.0,2.67022696]
[1753383617566,3.002,3745.1,3745.0,4.22754948]
[1753383617856,7.16,3745.1,3745.0,4.22754948]
[1753383622946,7.154,3745.1,3745.0,4.22754948]
[1753383627134,3.002,3745.1,3745.0,4.22754948]
[1753383627372,7.151,3745.1,3745.0,4.22754948]
[1753383632242,3.002,3745.1,3745.0,4.22754948]
[1753383632575,0.002,3745.1,3745.0,5.06495174]
[1753383633943,0.002,3745.1,3745.0,9.21395174]
[1753383634139,0.002,3745.1,3745.0,9.18724948]
[1753383636291,0.002,3745.1,3745.0,3.48092696]
[1753383636445,0.002,3745.1,3745.0,2.67022696]
[1753383636790,0.002,3745.1,3745.0,3.12832696]
[1753383637088,0.002,3745.1,3745.0,3.58832696]
[1753383638303,0.002,3745.1,3745.0,4.37802696]
[1753383638597,0.002,3745.1,3745.0,6.11283072]
[1753383638884,0.002,3745.1,3745.0,5.65473072]
[1753383639089,0.002,3745.1,3745.0,6.11283072]
[1753383639255,1e-08,3745.1,3745.0,6.11283072]
[1753383640789,1e-08,3745.1,3745.0,10.26083072]
[1753383641362,1e-08,3745.1,3745.0,4.40503072]
[1753383641733,1e-08,3745.1,3745.0,2.67022696]
[1753383642847,1e-08,3745.1,3744.9,2.67023655]
[1753383643054,0.453,3745.0,3744.8,0.1336]
[1753383643459,0.453,3744.9,3744.6,0.1336]
[1753383643880,0.453,3744.8,3744.7,2.67041779]
[1753383644381,0.453,3744.8,3744.6,0.1336]
[1753383644752,0.453,3744.8,3744.7,2.67044088]
[1753383645098,0.68360001,3745.1,3745.0,2.67022696]
[1753383645753,1e-08,3745.1,3745.0,4.18649642]
[1753383645978,1e-08,3745.1,3745.0,4.32009642]
[1753383647940,1e-08,3745.1,3745.0,4.34679868]
[1753383648803,1e-08,3745.1,3745.0,3.87169868]
[1753383649018,1e-08,3745.1,3745.0,4.34679868]
[1753383661646,1e-08,3745.1,3745.0,5.11119868]
[1753383663103,1e-08,3745.1,3745.0,11.10021085]
[1753383663337,1e-08,3745.1,3745.0,15.22050859]
[1753383667532,1e-08,3745.1,3745.0,15.21950859]
[1753383668769,1e-08,3745.1,3745.0,11.07350859]
[1753383668916,1e-08,3745.1,3745.0,14.45510859]
[1753383669669,0.002,3745.9,3745.8,2.66965668]
[1753383669966,1e-08,3746.3,3746.2,2.66937162]
[1753383670169,1e-08,3746.3,3746.2,12.80438379]
[1753383670381,1e-08,3746.3,3746.2,6.94897162]
[1753383672237,1e-08,3746.3,3746.2,7.88537162]
[1753383672433,1e-08,3746.3,3746.2,6.94897162]
[1753383672633,1e-08,3746.3,3746.2,9.80671439]
[1753383673366,1e-08,3746.3,3746.2,8.87031439]
[1753383674322,1e-08,3746.3,3746.2,9.80671439]
[1753383678161,1e-08,3746.3,3746.2,10.59571439]
[1753383678939,1e-08,3746.3,3746.2,10.61451439]
[1753383685592,1e-08,3746.3,3746.2,8.86731439]
[1753383685741,1e-08,3746.3,3746.2,6.94597162]
[1753383687164,1e-08,3746.3,3746.2,7.90807162]
[1753383688397,1e-08,3746.3,3746.2,6.94597162]
[1753383688701,1e-08,3746.3,3746.2,7.90807162]
[1753383689494,1e-08,3746.3,3746.2,6.94597162]
[1753383690188,1e-08,3746.3,3746.2,7.82779051]
[1753383690775,1e-08,3746.3,3746.2,8.78989051]
[1753383691470,1e-08,3746.3,3746.2,8.29599051]
[1753383691668,0.93840001,3746.3,3746.2,2.80297162]
[1753383691888,0.48330001,3746.3,3746.2,6.94497162]
[1753383692916,0.93840001,3746.3,3746.2,6.94497162]
[1753383693434,0.93840001,3746.3,3746.2,2.66937162]
[1753383693720,1.76400001,3746.3,3746.2,2.66937162]
[1753383697505,1.76400001,3746.3,3746.1,2.80301643]
[1753383697712,0.82560001,3746.3,3746.2,2.66937162]
[1753383698210,0.82560001,3746.3,3745.8,2.6695943]
[1753383698423,0.9384,3746.2,3745.8,2.8031943]
[1753383698722,0.7963,3745.9,3745.1,4.142]
[1753383698881,0.55,3745.6,3745.3,0.1336]
[1753383699084,0.7963,3745.5,3745.2,2.67008081]
[1753383699427,1.7347,3745.5,3745.1,2.80373051]
[1753383699608,1.7347,3745.5,3745.0,0.001]
[1753383699609,2.31143813,3745.5,3745.0,0.001]
[1753383699816,5.08817051,3745.5,3745.0,0.001]
[1753383700112,2.4183,3745.5,3745.0,2.67120751]
[1753383700426,5.44503813,3745.5,3745.0,0.001]
[1753383700734,2.44503813,3745.5,3745.0,0.001]
[1753383700893,0.7963,3745.5,3745.4,2.67094179]
[1753383701092,0.7963,3745.5,3745.4,3.93754013]
[1753383701486,1.2796,3745.5,3745.4,3.93754013]
[1753383701684,1.2796,3745.5,3745.4,2.80454179]
[1753383702119,1.2796,3745.5,3745.4,0.1346]
[1753383702277,2.2847,3745.5,3745.4,0.001]
[1753383702478,2.4183,3745.5,3745.4,0.001]
[1753383703623,1.7347,3745.5,3745.4,2.67094179]
[1753383703792,1.2796,3745.5,3745.4,2.67094179]
[1753383703994,0.7963,3745.5,3745.4,2.67094179]
[1753383704194,0.7963,3745.5,3745.4,3.1051758]
[1753383704395,0.7963,3745.5,3745.4,2.80454179]
[1753383704719,1.2796,3745.8,3745.7,2.66972795]
[1753383704893,1e-08,3746.3,3745.4,0.1346]
[1753383704894,3.7963,3746.2,3746.0,2.66949563]
[1753383705093,3.7963,3746.2,3745.9,2.66957217]
[1753383705294,0.4833,3746.1,3745.9,2.66957217]
[1753383705513,0.4753,3746.0,3745.9,2.66957217]
[1753383706722,3.7963,3746.2,3745.7,0.1336]
[1753383706723,0.7963,3746.2,3745.7,0.1336]
[1753383706953,3.7963,3746.2,3746.0,2.66947223]
[1753383707129,1.2716,3746.2,3746.1,2.66944288]
[1753383707330,4.2716,3746.2,3746.1,2.66944288]
[1753383707491,4.2716,3746.2,3745.7,2.80325849]
[1753383707688,0.4753,3746.1,3745.9,2.66953774]
[1753383708003,0.4753,3746.0,3745.9,2.66953774]
[1753383708787,3.7963,3746.2,3745.7,2.80325849]
[1753383708788,1e-08,3746.3,3746.2,2.66937162]
[1753383709596,1e-08,3746.3,3746.2,8.28520678]
[1753383709926,1e-08,3746.3,3746.2,8.25851307]
[1753383711867,1e-08,3746.6,3746.5,8.65817005]
[1753383712034,1e-08,3746.6,3746.5,13.58367005]
[1753383712353,1e-08,3746.6,3746.5,16.65521286]
[1753383713268,1e-08,3746.6,3746.5,10.66620069]
[1753383714533,1e-08,3747.1,3747.0,3.4972017]
[1753383714732,1e-08,3747.1,3747.0,7.79748971]
[1753383714934,1e-08,3747.1,3747.0,8.6717017]
[1753383715137,1e-08,3747.1,3747.0,10.71536367]
[1753383715755,1e-08,3747.1,3747.0,11.9282075]
[1753383717027,1e-08,3747.1,3747.0,7.7882075]
[1753383717553,1e-08,3747.1,3747.0,9.88354553]
[1753383718452,1e-08,3747.1,3747.0,5.74454553]
[1753383718660,1e-08,3747.1,3747.0,9.88354553]
[1753383718839,1e-08,3747.1,3747.0,9.41614553]
[1753383719021,1e-08,3747.1,3747.0,5.74454553]
[1753383719227,1e-08,3747.1,3747.0,10.72488918]
[1753383720024,1e-08,3747.1,3747.0,4.85658918]
[1753383720226,1e-08,3747.1,3747.0,8.15424553]
[1753383720456,1e-08,3747.1,3747.0,4.01524553]
[1753383720663,1e-08,3747.1,3747.0,8.15424553]
[1753383721181,0.47530001,3747.1,3747.0,1.34644383]
[1753383721325,0.76290001,3747.1,3747.0,1.21284383]
[1753383721532,1.23820001,3747.1,3747.0,1.34644383]
[1753383721759,1.42520001,3747.1,3747.0,4.01524553]
[1753383721987,1e-08,3747.1,3747.0,4.97965392]
[1753383722161,1e-08,3747.1,3747.0,8.17993354]
[1753383722332,1e-08,3747.1,3747.0,8.15324553]
[1753383723358,0.47530001,3747.1,3747.0,1.34644383]
[1753383723664,0.47530001,3747.1,3747.0,3.88164553]
[1753383723967,1e-08,3747.1,3747.0,3.88164553]
[1753383724173,0.47530001,3747.1,3747.0,3.88164553]
[1753383725039,1e-08,3747.1,3747.0,3.88164553]
[1753383725444,1e-08,3747.1,3747.0,5.45795081]
[1753383725664,1e-08,3747.1,3747.0,10.02945081]
[1753383725869,1e-08,3747.1,3747.0,10.0027628]
[1753383729940,0.7767,3748.7,3748.4,2.66780493]
[1753383730144,0.7767,3748.7,3748.4,2.69448297]
[1753383730380,1.252,3748.7,3748.4,2.80140493]
[1753383730557,0.4773,3748.5,3748.4,2.80140493]
[1753383730758,0.9355,3748.5,3748.4,2.80140493]
[1753383731148,0.4773,3748.5,3748.4,2.80140493]
[1753383733980,0.002,3748.5,3748.4,3.76213944]
[1753383734166,0.002,3748.5,3748.4,7.89913944]
[1753383734368,0.002,3748.5,3748.4,8.80003944]
[1753383734679,0.002,3748.5,3748.4,8.33263944]
[1753383734880,0.002,3748.5,3748.4,7.89913944]
[1753383735478,0.002,3748.5,3748.4,2.80140493]
[1753383735664,0.002,3748.5,3748.4,6.93840493]
[1753383735981,0.002,3748.5,3748.4,7.86100493]
[1753383736277,1e-08,3748.5,3748.4,8.68310493]
[1753383736696,1e-08,3748.9,3748.8,2.66752027]
[1753383736847,1e-08,3748.9,3748.8,7.49730824]
[1753383737047,1e-08,3748.9,3748.8,9.18353304]
[1753383738981,1e-08,3748.9,3748.8,5.04753304]
[1753383739182,1e-08,3748.9,3748.8,8.75750824]
[1753383739348,1e-08,3748.9,3748.8,9.18353304]
[1753383739678,1e-08,3748.9,3748.8,5.04753304]
[1753383739846,1e-08,3748.9,3748.8,3.36130824]
[1753383740048,1e-08,3748.9,3748.8,7.47063304]
[1753383740856,1e-08,3748.9,3748.8,7.46963304]
[1753383741299,1e-08,3748.9,3748.8,3.33463304]
[1753383741498,1e-08,3748.9,3748.8,7.46963304]
[1753383742277,1e-08,3748.9,3748.8,8.39223304]
[1753383743975,1e-08,3749.3,3748.9,0.7956]
[1753383744179,0.002,3749.7,3749.6,2.66695114]
[1753383744376,1e-08,3749.7,3749.6,6.82862065]
[1753383744576,1e-08,3749.7,3749.6,8.50605114]
[1753383744781,1e-08,3750.0,3749.9,2.66673777]
[1753383744978,1e-08,3750.6,3750.5,3.44781115]
[1753383745202,1e-08,3750.6,3750.5,7.61747426]
[1753383745383,1e-08,3750.6,3750.5,8.51341115]
[1753383745585,1e-08,3750.6,3750.5,17.60943826]
[1753383745804,1e-08,3750.6,3750.5,19.63702225]
[1753383746810,1e-08,3750.6,3750.5,10.54599514]
[1753383747025,1e-08,3750.6,3750.5,19.64202225]
[1753383747894,0.002,3751.4,3751.3,2.66574254]
[1753383748093,0.002,3751.4,3751.3,6.81674254]
[1753383748325,0.002,3751.4,3751.3,7.76500023]
[1753383748498,0.002,3751.4,3751.3,3.61400023]
[1753383748698,0.002,3751.4,3751.3,7.76500023]
[1753383749324,0.002,3751.4,3751.3,8.68760023]
[1753383749995,0.002,3751.4,3751.3,7.76400023]
[1753383750334,0.002,3751.4,3751.3,7.76200023]
[1753383751840,0.002,3751.4,3751.3,8.68460023]
[1753383754297,0.002,3751.4,3751.3,8.81820023]
[1753383754639,0.002,3751.4,3751.3,9.56890023]
[1753383755337,0.002,3751.4,3751.3,7.89860023]
[1753383756445,0.002,3751.4,3751.3,18.69092734]
[1753383756644,1e-08,3751.4,3751.3,18.69092734]
[1753383757747,0.002,3752.2,3751.3,18.69092734]
[1753383757909,0.002,3752.2,3752.1,12.53490127]
[1753383758105,0.002,3753.0,3752.9,2.66460603]
[1753383758312,0.002,3753.0,3752.9,6.81460603]
[1753383758635,0.002,3753.0,3752.9,6.94820603]
[1753383762820,0.002,3753.0,3752.9,0.1336]
[1753383763050,1.7945,3753.0,3752.9,6.94420603]
[1753383763655,1.7945,3753.0,3752.9,4.2796]
[1753383763814,1.7945,3753.0,3752.9,4.146]
[1753383764822,1.3293,3753.0,3752.9,6.81060603]
[1753383765028,0.002,3753.0,3752.9,7.89173995]
[1753383765551,0.002,3753.0,3752.9,8.79373995]
[1753383765750,0.002,3753.0,3752.9,4.64773995]
[1753383766056,0.002,3753.0,3752.9,3.77238601]
[1753383766257,0.002,3753.0,3752.9,6.94420603]
[1753383767923,0.002,3753.0,3752.9,2.79820603]
[1753383768130,0.002,3753.0,3752.9,6.94220603]
[1753383768312,0.4696,3753.0,3752.9,6.94220603]
[1753383768919,0.002,3753.0,3752.9,6.94220603]
[1753383771234,0.4696,3753.0,3752.9,6.94220603]
[1753383771825,0.002,3753.0,3752.9,0.1336]
[1753383772026,0.002,3753.0,3752.5,2.66485156]
[1753383772027,1.767,3753.0,3752.8,2.6646766]
[1753383772349,0.9342,3752.9,3752.8,0.1336]
[1753383772938,0.9342,3752.9,3752.4,2.66494119]
[1753383773284,0.9342,3752.8,3752.5,6.93847929]
[1753383773486,0.85953813,3753.0,3752.6,4.14]
[1753383773487,0.4676,3752.7,3752.6,4.14]
[1753383773765,0.8033,3752.6,3752.5,4.14]
[1753383774127,1.7375,3752.6,3752.3,0.1336]
[1753383774364,0.4666,3752.5,3752.3,0.1336]
[1753383774740,0.8033,3752.6,3752.3,2.79862926]
[1753383775063,0.4666,3752.4,3752.3,2.79862926]
[1753383775966,0.8033,3752.6,3752.3,0.1336]
[1753383776176,0.8033,3752.6,3752.5,2.66489007]
[1753383776373,0.7853,3752.9,3752.5,0.69524875]
[1753383776528,0.002,3753.0,3752.9,2.66460603]
[1753383780944,0.7678,3752.9,3752.8,2.66467704]
[1753383781652,0.4686,3753.0,3752.8,2.66467704]
[1753383781653,0.002,3753.0,3752.9,2.66460603]
[1753383781841,0.002,3753.0,3752.9,2.79820603]
[1753383782556,0.002,3753.0,3752.9,4.2579404]
[1753383782742,0.002,3753.0,3752.9,5.4742404]
[1753383782942,1e-08,3753.0,3752.9,5.4742404]
[1753383783586,0.002,3753.7,3753.6,3.49710912]
[1753383783882,0.002,3753.8,3753.6,3.49710912]
[1753383783883,1e-08,3753.8,3753.7,11.76006525]
[1753383784067,1e-08,3753.8,3753.7,12.10977616]
[1753383784373,1e-08,3753.8,3753.7,13.01177616]
[1753383784937,1e-08,3753.8,3753.7,8.05574905]
[1753383785738,1e-08,3753.8,3753.7,17.15177616]
[1753383785950,1e-08,3753.8,3753.7,17.91257616]
[1753383787156,1e-08,3753.8,3753.7,3.91574905]
[1753383787384,1e-08,3753.8,3753.7,8.86518943]
[1753383787585,1e-08,3753.8,3753.7,8.83854905]
[1753383794887,1e-08,3753.8,3753.7,3.01374905]
[1753383795070,1e-08,3753.8,3753.7,7.20138943]
[1753383795264,1e-08,3753.8,3753.7,7.17474905]
[1753383795801,1e-08,3753.8,3753.7,7.60614905]
[1753383797381,1e-08,3753.8,3753.7,7.73974905]
[1753383797696,1e-08,3753.8,3753.7,8.19744905]
[1753383798394,1e-08,3753.8,3753.7,8.99934905]
[1753383799000,1e-08,3753.8,3753.7,4.84034905]
[1753383799164,1e-08,3753.8,3753.7,8.99634905]
[1753383799372,1e-08,3753.8,3753.7,8.10524905]
[1753383799874,1e-08,3753.8,3753.7,8.99634905]
[1753383805911,1e-08,3753.8,3753.7,3.14734905]
[1753383806111,1e-08,3753.8,3753.7,8.05484905]
[1753383806307,1e-08,3753.8,3753.7,6.81403814]
[1753383806609,1e-08,3753.8,3753.7,2.66403814]
[1753383806798,1e-08,3753.8,3753.7,6.81403814]
[1753383807900,1e-08,3753.8,3753.7,7.70513814]
[1753383808209,1e-08,3753.8,3753.7,8.82066287]
[1753383811323,1e-08,3753.8,3753.7,9.65086287]
[1753383812305,1e-08,3753.8,3750.5,6.16754455]
[1753383812306,1.48908547,3753.8,3750.5,6.16754455]
[1753383812482,1.48908547,3753.8,3750.6,0.0276624]
[1753383812483,0.55,3752.7,3750.6,0.0276624]
[1753383812683,0.02673813,3752.6,3750.9,2.66597063]
[1753383813017,0.55,3752.3,3750.6,0.001]
[1753383813316,0.02673813,3752.2,3750.6,0.001]
[1753383813482,4.15864126,3752.2,3750.6,0.001]
[1753383814521,4.15864126,3752.2,3750.7,2.66611289]
[1753383814889,11.39464126,3752.2,3750.7,2.66611289]
[1753383815088,11.36790313,3752.2,3750.9,2.66601303]
[1753383815290,12.14980313,3752.2,3750.9,2.66601303]
[1753383815684,12.14980313,3752.2,3751.0,2.66595016]
[1753383815949,12.14980313,3752.2,3750.9,2.66601202]
[1753383816091,8.04740313,3752.2,3751.2,0.1336]
[1753383816291,12.28340313,3752.2,3751.2,0.1336]
[1753383816490,12.28040313,3752.2,3751.2,0.1336]
[1753383817410,12.28040313,3752.2,3750.6,0.001]
[1753383817411,3.55,3752.1,3750.6,0.001]
[1753383817734,2.6665078,3750.3,3749.4,2.66706331]
[1753383817898,2.6665078,3750.3,3748.3,2.66783802]
[1753383817899,0.55,3750.1,3749.7,2.66681859]
[1753383818095,0.4871,3750.2,3749.7,2.6668454]
[1753383818412,0.4871,3750.2,3749.3,0.4577]
[1753383818413,0.4871,3750.2,3749.8,2.66679802]
[1753383818615,0.4871,3750.1,3749.6,2.66689405]
[1753383818811,0.4871,3750.0,3749.4,2.6670934]
[1753383819017,0.4871,3750.1,3749.4,0.38249027]
[1753383819213,0.4871,3750.1,3749.9,2.66673233]
[1753383819533,0.4871,3750.1,3750.0,2.66666666]
[1753383819926,0.7819,3750.5,3750.3,2.66645335]
[1753383819927,1.269,3750.5,3750.3,2.66645335]
[1753383820238,1.819,3750.5,3750.4,2.66638225]
[1753383820610,1.269,3750.5,3750.4,2.66638225]
[1753383820931,0.55,3750.8,3750.4,2.66632666]
[1753383821133,0.4871,3750.5,3750.3,2.6664486]
[1753383821336,0.9168,3750.4,3749.4,0.81351934]
[1753383821636,4.90129715,3750.3,3749.3,2.66714019]
[1753383821838,4.90129715,3750.3,3748.9,0.02667449]
[1753383821839,1.0371,3750.2,3748.9,0.02667449]
[1753383822156,1.22443813,3750.3,3748.7,2.66759143]
[1753383822157,0.768,3750.3,3750.2,2.66652445]
[1753383822724,1.2551,3750.3,3750.2,2.66652445]
[1753383823039,0.768,3750.3,3750.2,2.66652445]
[1753383823225,1.8051,3750.7,3750.5,2.66624712]
[1753383823446,1.318,3750.7,3750.5,2.66624712]
[1753383823655,0.4871,3750.6,3750.5,2.66624712]
[1753383823951,0.4871,3750.6,3750.4,2.66635219]
[1753383824346,0.4871,3750.6,3750.5,2.66631115]
[1753383826871,0.4871,3750.6,3750.3,2.66644307]
[1753383826872,0.9263,3750.6,3750.3,2.66644307]
[1753383827033,0.9265,3750.5,3749.4,0.4502]
[1753383827236,0.9265,3750.5,3750.3,2.66645289]
[1753383827569,2.41946709,3750.4,3749.8,2.66678355]
[1753383827748,4.93216709,3750.4,3749.8,2.80038355]
[1753383827943,0.55,3750.2,3749.8,2.80038355]
[1753383828150,0.9265,3750.1,3749.8,2.80038355]
[1753383828466,0.4873,3750.0,3749.9,2.66673747]
[1753383828831,0.4392,3750.1,3750.0,2.66666666]
[1753383829047,0.55,3750.2,3750.1,2.66659555]
[1753383829579,1.0373,3750.2,3750.1,2.66659555]
[1753383829936,1.0373,3750.2,3749.8,0.1336]
[1753383830290,0.55,3749.8,3749.3,2.66716453]
[1753383830436,0.55,3749.6,3749.2,2.80176772]
[1753383830733,0.9265,3749.5,3749.2,2.80176772]
[1753383830937,0.4392,3749.5,3749.3,2.66716244]
[1753383831142,0.4873,3749.4,3749.3,2.66716244]
[1753383831590,0.76806709,3749.6,3749.3,2.66716244]
[1753383831745,0.76806709,3749.6,3749.5,2.66702226]
[1753383832079,0.76806709,3749.6,3749.5,2.80062226]
[1753383833255,0.76806709,3749.6,3749.5,0.1336]
[1753383833455,0.55,3749.5,3749.2,0.1346]
[1753383833681,1.50323813,3749.5,3749.2,0.1346]
[1753383833885,1.4765,3749.5,3749.4,2.6670934]
[1753383834177,1.0373,3749.5,3749.3,2.66715514]
[1753383834376,1.0373,3749.5,3749.4,2.6670934]
[1753383835289,0.55,3749.5,3749.4,2.6670934]
[1753383835775,1.0373,3749.5,3749.4,2.6670934]
[1753383836245,1.0373,3749.5,3749.3,0.001]
[1753383836246,4.50323813,3749.5,3749.3,0.001]
[1753383836445,7.9571934,3749.4,3749.3,0.001]
[1753383836645,9.0308434,3749.4,3749.3,0.001]
[1753383836846,13.2708434,3749.4,3749.3,0.001]
[1753383837406,13.51730452,3749.4,3749.3,0.001]
[1753383837543,14.08476478,3749.4,3749.3,0.001]
[1753383838395,14.08476478,3749.4,3748.0,0.001]
[1753383838396,3.48097796,3749.0,3748.0,0.001]
[1753383838688,7.03161846,3748.1,3748.0,0.001]
[1753383838897,11.53507958,3748.1,3748.0,0.001]
[1753383839068,12.28883803,3748.1,3748.0,0.001]
[1753383839386,13.59139779,3748.1,3748.0,0.001]
[1753383839682,13.73952811,3748.1,3748.0,0.001]
[1753383839980,14.68589762,3748.1,3748.0,0.001]
[1753383840286,6.81450965,3748.1,3748.0,0.001]
[1753383840494,0.55,3747.9,3747.7,2.66829467]
[1753383840645,0.24646112,3747.8,3747.7,0.50952169]
[1753383840851,0.24646112,3747.8,3747.3,0.001]
[1753383840852,4.262,3747.8,3747.3,0.001]
[1753383841153,0.55,3747.6,3747.3,0.001]
[1753383841376,0.55,3747.4,3747.3,2.66958805]
[1753383841683,9.58654164,3747.4,3747.3,0.001]
[1753383841850,8.87568114,3747.4,3747.3,2.66958805]
[1753383842045,8.87568114,3747.4,3747.3,0.001]
[1753383842250,10.52213646,3747.4,3747.3,0.001]
[1753383842490,9.81127596,3747.4,3747.3,0.001]
[1753383843150,10.58327596,3747.4,3747.3,0.001]
[1753383843486,5.87407596,3747.4,3747.3,0.001]
[1753383843646,10.14407596,3747.4,3747.3,2.66958805]
[1753383843847,5.87407596,3747.4,3747.3,2.66958805]
[1753383844085,9.40557855,3747.4,3747.3,2.66958805]
[1753383844283,9.09661048,3747.4,3747.3,2.66958805]
[1753383844482,0.56838114,3747.4,3747.3,2.66958805]
[1753383844680,4.83438114,3747.4,3747.3,2.66958805]
[1753383844887,0.56838114,3747.4,3747.3,2.66958805]
[1753383845087,4.83438114,3747.4,3747.3,4.17734927]
[1753383845594,4.83438114,3747.4,3747.3,3.55488805]
[1753383846396,5.54661048,3747.4,3747.3,3.55488805]
[1753383847160,1.28061048,3747.4,3747.3,3.55488805]
[1753383847691,0.56838114,3747.4,3747.3,3.55488805]
[1753383847889,0.56838114,3747.4,3747.3,2.66958805]
[1753383848057,1.28061048,3747.4,3747.3,2.66958805]
[1753383848384,1.28061048,3747.4,3747.3,2.80318805]
[1753383848583,0.56838114,3747.4,3747.3,2.80318805]
[1753383851289,0.56838114,3747.4,3747.3,3.68848805]